bitfinex/quotes_ETHUSD_20250913
["timestamp","ask_amount","ask_price","bid_price","bid_amount"]
[1757727171128,34.20306471,4709.0,4708.9,45.51891757]
[1757727171732,35.43306471,4709.0,4708.9,45.51891757]
[1757727173456,36.66306471,4709.0,4708.9,45.51891757]
[1757727173633,36.66306471,4709.0,4708.9,45.62451757]
[1757727174035,36.66306471,4709.0,4708.9,15.62451757]
[1757727174235,36.40873697,4709.0,4708.9,45.62451757]
[1757727174777,37.63167891,4709.0,4708.9,45.62451757]
[1757727175331,37.63167891,4709.0,4708.9,45.81874575]
[1757727176142,38.86167891,4709.0,4708.9,45.81874575]
[1757727177575,38.86167891,4709.0,4708.9,45.57851757]
[1757727177775,40.09167891,4709.0,4708.9,45.57851757]
[1757727179070,32.97143366,4709.0,4708.9,42.4921254]
[1757727179454,30.51264015,4709.0,4708.9,42.4921254]
[1757727179652,30.51264015,4709.0,4708.9,46.26067102]
[1757727179972,30.51264015,4709.0,4708.9,45.41367102]
[1757727180877,31.74264015,4709.0,4708.9,45.41367102]
[1757727181173,31.74264015,4709.0,4708.9,45.17344284]
[1757727181598,31.74264015,4709.0,4708.9,45.11384284]
[1757727181767,31.74264015,4709.0,4708.9,44.56546319]
[1757727182097,31.74264015,4709.0,4708.9,45.17664284]
[1757727182395,32.97264015,4709.0,4708.9,45.11384284]
[1757727182584,32.97264015,4709.0,4708.9,42.0863485]
[1757727182786,32.97264015,4709.0,4708.9,42.63472815]
[1757727183002,32.97264015,4709.0,4708.9,42.0863485]
[1757727183383,32.97264015,4709.0,4708.9,42.63472815]
[1757727183764,34.20264015,4709.0,4708.9,42.63472815]
[1757727184064,34.20264015,4709.0,4708.9,42.96680951]
[1757727184397,34.20264015,4709.0,4708.9,42.90400951]
[1757727185025,34.20264015,4709.0,4708.9,42.63172815]
[1757727185295,35.43264015,4709.0,4708.9,58.20032815]
[1757727185598,35.43264015,4709.0,4708.9,57.6519485]
[1757727185803,35.43264015,4709.0,4708.9,58.20032815]
[1757727186360,35.43264015,4709.0,4708.9,58.46960951]
[1757727186566,36.66264015,4709.0,4708.9,58.46960951]
[1757727186968,36.15410409,4709.0,4708.9,57.12949207]
[1757727187300,30.43317916,4709.0,4708.9,57.06669207]
[1757727187505,30.43317916,4709.0,4708.9,56.82646389]
[1757727188006,30.43317916,4709.0,4708.9,60.59547671]
[1757727188200,31.66317916,4709.0,4708.9,60.59547671]
[1757727188701,31.66317916,4709.0,4708.9,60.04709706]
[1757727188902,31.66317916,4709.0,4708.9,51.84647671]
[1757727189154,31.66317916,4709.0,4708.9,46.75947671]
[1757727189337,25.38378109,4709.0,4708.9,40.81792567]
[1757727189528,22.37353725,4709.0,4708.9,40.81792567]
[1757727189730,20.98452834,4709.0,4708.9,41.9086091]
[1757727189926,16.74425076,4709.0,4708.9,40.81792567]
[1757727190276,11.09148826,4709.0,4708.9,40.81792567]
[1757727190564,10.03202033,4709.0,4708.9,40.81792567]
[1757727190774,9.61807915,4709.0,4708.9,38.58692567]
[1757727190957,8.55861122,4709.0,4708.9,38.58692567]
[1757727191359,7.49914329,4709.0,4708.9,38.58692567]
[1757727191537,7.32579329,4709.0,4708.9,38.58692567]
[1757727191867,6.20832536,4709.0,4708.9,38.58692567]
[1757727192073,6.91232536,4709.0,4708.9,38.58692567]
[1757727192275,5.85300109,4709.0,4708.9,38.58692567]
[1757727192645,5.65300109,4709.0,4708.9,38.58692567]
[1757727192850,4.56900109,4709.0,4708.9,38.58692567]
[1757727193369,4.56900109,4709.0,4708.9,38.52412567]
[1757727193679,4.18800109,4709.0,4708.9,38.52412567]
[1757727193826,3.47400109,4709.0,4708.9,38.52412567]
[1757727194231,0.03786657,4709.0,4708.9,40.75512567]
[1757727194532,0.002,4709.3,4709.2,6.57137965]
[1757727194749,0.002,4709.3,4709.2,40.40866101]
[1757727194968,1.232,4709.3,4709.2,38.17876101]
[1757727195294,1.22878185,4709.3,4709.2,53.63876101]
[1757727195469,1.22878185,4709.3,4709.2,51.23498919]
[1757727195979,1.22878185,4709.3,4709.2,45.13198919]
[1757727196559,2.45878185,4709.3,4709.2,45.13198919]
[1757727196961,2.45878185,4709.3,4709.2,45.23758919]
[1757727197688,2.45878185,4709.3,4709.2,15.23758919]
[1757727197887,3.68878185,4709.3,4709.2,8.92050749]
[1757727198093,3.68878185,4709.3,4709.2,39.34841622]
[1757727199160,4.91878185,4709.3,4709.2,39.34841622]
[1757727199479,4.91878185,4709.3,4709.2,39.07913486]
[1757727199864,4.91878185,4709.3,4709.2,39.07803486]
[1757727200398,4.91878185,4709.3,4709.2,41.30903486]
[1757727200594,6.14878185,4709.3,4709.2,41.30903486]
[1757727200797,9.19198185,4709.3,4709.2,39.07503486]
[1757727200998,6.59558185,4709.3,4709.2,39.07503486]
[1757727201591,6.59558185,4709.3,4709.2,38.52665521]
[1757727201799,6.59558185,4709.3,4709.2,39.07503486]
[1757727201965,7.82558185,4709.3,4709.2,39.07503486]
[1757727202164,8.12128185,4709.3,4709.2,39.07503486]
[1757727202482,10.42198185,4709.3,4709.2,35.51003486]
[1757727202686,10.42198185,4709.3,4709.2,39.07403486]
[1757727202883,10.42198185,4709.3,4709.2,4.96165521]
[1757727203091,9.91348883,4709.3,4709.2,38.52565521]
[1757727203397,11.14348883,4709.3,4709.2,38.52565521]
[1757727203900,11.14348883,4709.3,4709.2,4.73365521]
[1757727204195,11.14348883,4709.3,4709.2,8.52565521]
[1757727204401,11.14348883,4709.3,4709.2,37.73365521]
[1757727204579,12.37348883,4709.3,4709.2,38.52565521]
[1757727205195,12.37348883,4709.3,4709.2,52.35665521]
[1757727205403,12.37348883,4709.3,4709.2,53.98365521]
[1757727205978,12.37348883,4709.3,4709.2,23.98365521]
[1757727206202,13.60348883,4709.3,4709.2,53.98365521]
[1757727206767,13.60348883,4709.3,4709.2,54.25293657]
[1757727207176,10.56028883,4709.3,4709.2,54.25293657]
[1757727207501,14.83348883,4709.3,4709.2,54.49316475]
[1757727207829,14.83348883,4709.3,4709.2,58.27124824]
[1757727208510,14.09098883,4709.3,4709.2,58.27124824]
[1757727208681,11.79028883,4709.3,4709.2,51.84916475]
[1757727209002,11.79028883,4709.3,4709.2,51.85026475]
[1757727209300,13.02028883,4709.3,4709.2,51.85026475]
[1757727209504,13.02028883,4709.3,4709.2,51.61003657]
[1757727209900,11.72028883,4709.3,4709.2,52.05281622]
[1757727210093,11.72028883,4709.3,4709.2,45.95081622]
[1757727210470,12.95028883,4709.3,4709.2,45.95081622]
[1757727211001,12.24431374,4709.3,4709.2,45.95081622]
[1757727211204,11.55505774,4709.3,4709.2,39.23881622]
[1757727211504,10.34380674,4709.3,4709.2,38.69043657]
[1757727211724,8.96825074,4709.3,4709.2,39.23881622]
[1757727211929,10.19825074,4709.3,4709.2,39.23881622]
[1757727212223,10.19825074,4709.3,4709.2,9.23881622]
[1757727212432,10.19825074,4709.3,4709.2,9.34658179]
[1757727212626,10.19825074,4709.3,4709.2,39.34658179]
[1757727213397,7.73742674,4709.3,4709.2,39.34658179]
[1757727213629,7.71042674,4709.3,4709.2,39.34658179]
[1757727214006,7.71242674,4709.3,4709.2,39.34658179]
[1757727214736,8.94242674,4709.3,4709.2,39.34658179]
[1757727215237,8.94242674,4709.3,4709.2,54.80558179]
[1757727215415,8.94242674,4709.3,4709.2,24.80558179]
[1757727215618,8.94242674,4709.3,4709.2,54.80558179]
[1757727215828,11.98562674,4709.3,4709.2,54.25610214]
[1757727216138,13.21562674,4709.3,4709.2,54.25610214]
[1757727216298,13.21562674,4709.3,4709.2,54.80448179]
[1757727216503,10.17242674,4709.3,4709.2,54.80448179]
[1757727216922,10.06917174,4709.3,4709.2,54.80448179]
[1757727217234,12.66557174,4709.3,4709.2,54.80448179]
[1757727217542,13.89557174,4709.3,4709.2,54.80448179]
[1757727218409,13.89557174,4709.3,4709.2,48.59648179]
[1757727218610,13.89557174,4709.3,4709.2,52.16048179]
[1757727218821,15.12557174,4709.3,4709.2,52.16048179]
[1757727219120,14.6170657,4709.3,4709.2,52.16048179]
[1757727219457,14.6170657,4709.3,4709.2,51.61210214]
[1757727220058,14.6170657,4709.3,4709.2,51.71770214]
[1757727220254,15.8470657,4709.3,4709.2,51.71770214]
[1757727220426,15.8470657,4709.3,4709.2,21.71770214]
[1757727220627,15.8470657,4709.3,4709.2,48.15370214]
[1757727220827,15.8470657,4709.3,4709.2,51.71770214]
[1757727221651,17.0770657,4709.3,4709.2,51.71770214]
[1757727222424,17.0770657,4709.3,4709.2,45.61470214]
[1757727223128,18.3070657,4709.3,4709.2,45.61470214]
[1757727224458,19.5370657,4709.3,4709.2,38.90270214]
[1757727225122,19.5370657,4709.3,4709.2,41.54670214]
[1757727225326,19.5370657,4709.3,4709.2,54.36170214]
[1757727225768,20.7670657,4709.3,4709.2,54.36170214]
[1757727227188,21.48853164,4709.3,4709.2,54.36170214]
[1757727227561,21.48853164,4709.3,4709.2,24.36170214]
[1757727227856,21.48853164,4709.3,4709.2,40.52970214]
[1757727228554,22.71853164,4709.3,4709.2,40.52970214]
[1757727229160,19.67533164,4709.3,4709.2,38.90380214]
[1757727229490,19.67533164,4709.3,4709.2,39.14403032]
[1757727230011,20.90533164,4709.3,4709.2,39.14293032]
[1757727230517,21.37733164,4709.3,4709.2,39.14293032]
[1757727230657,21.37733164,4709.3,4709.2,9.14293032]
[1757727231012,21.37733164,4709.3,4709.2,39.14293032]
[1757727231300,22.60733164,4709.3,4709.2,38.90270214]
[1757727231655,22.90763164,4709.3,4709.2,8.90270214]
[1757727231858,25.18383164,4709.3,4709.2,38.90270214]
[1757727232588,25.16728407,4709.3,4709.2,35.33870214]
[1757727232795,26.39728407,4709.3,4709.2,38.63342078]
[1757727234170,27.62728407,4709.3,4709.2,38.63342078]
[1757727235186,27.11876096,4709.3,4709.2,52.46542078]
[1757727235398,27.11876096,4709.3,4709.2,54.09242078]
[1757727235597,28.34876096,4709.3,4709.2,54.09242078]
[1757727235790,28.34876096,4709.3,4709.2,24.09242078]
[1757727235970,28.34876096,4709.3,4709.2,54.09242078]
[1757727236894,28.34876096,4709.3,4709.2,24.09242078]
[1757727237098,29.57876096,4709.3,4709.2,54.09242078]
[1757727237258,26.53026096,4709.3,4709.2,40.26042078]
[1757727237458,26.53026096,4709.3,4709.2,38.90270214]
[1757727238584,27.76026096,4709.3,4709.2,38.90380214]
[1757727238786,27.76026096,4709.3,4709.2,39.14403032]
[1757727239095,21.15152914,4709.3,4709.2,37.02491627]
[1757727239302,19.03164256,4709.3,4709.2,37.66104926]
[1757727239507,10.25392723,4709.3,4709.2,37.66104926]
[1757727239802,13.939121,4709.9,4709.2,40.38229162]
[1757727239986,4.39940168,4709.9,4709.8,1.34037965]
[1757727240194,0.45473572,4709.9,4709.8,33.32410448]
[1757727240390,0.56662249,4710.9,4710.2,0.792]
[1757727240710,0.56662249,4710.9,4710.4,0.792]
[1757727241002,12.75162035,4713.0,4711.0,3.792]
[1757727241203,12.75162035,4713.0,4711.1,35.335769]
[1757727241609,1.5303,4711.2,4711.1,35.335769]
[1757727242124,1.5303,4711.2,4711.1,39.74936681]
[1757727242506,4.2785,4711.2,4711.1,39.74936681]
[1757727242707,5.5085,4711.2,4711.1,39.74936681]
[1757727242907,2.7603,4711.2,4711.1,36.24105658]
[1757727243084,2.25193547,4711.2,4711.1,36.24105658]
[1757727243286,2.72393547,4711.2,4711.1,36.24105658]
[1757727243508,4.74596374,4711.2,4711.1,36.24105658]
[1757727244116,5.97596374,4711.2,4711.1,36.24105658]
[1757727244691,2.92746374,4711.2,4711.1,36.24105658]
[1757727244891,2.92746374,4711.2,4711.1,36.55725658]
[1757727245104,2.92746374,4711.2,4711.1,37.02055658]
[1757727245328,2.92746374,4711.2,4711.1,54.49118476]
[1757727245485,4.15746374,4711.2,4711.1,52.71878476]
[1757727246130,4.15746374,4711.2,4711.1,24.73901576]
[1757727247121,5.38746374,4711.2,4711.1,37.25949176]
[1757727247523,5.38746374,4711.2,4711.1,36.79619176]
[1757727247888,5.38746374,4711.2,4711.1,36.55596358]
[1757727248290,3.85546374,4711.2,4711.1,33.79396358]
[1757727248930,3.69129374,4711.2,4711.1,33.79396358]
[1757727249131,3.09541874,4711.2,4711.1,33.03391858]
[1757727249339,2.76241874,4711.2,4711.1,32.70091858]
[1757727249714,3.21241874,4711.2,4711.1,32.70091858]
[1757727249935,1.23,4711.4,4711.2,3.792]
[1757727250235,1.23,4711.4,4711.3,37.355]
[1757727250538,1.23,4711.4,4711.3,37.94048136]
[1757727251112,1.95174545,4711.4,4711.3,37.94048136]
[1757727252326,1.95174545,4711.4,4711.3,38.57634469]
[1757727252633,3.18174545,4711.4,4711.3,38.57634469]
[1757727254106,4.41174545,4711.4,4711.3,42.33284511]
[1757727254307,4.41174545,4711.4,4711.3,12.33284511]
[1757727254708,4.41174545,4711.4,4711.3,42.33284511]
[1757727255313,4.41174545,4711.4,4711.3,57.78684511]
[1757727255638,5.64174545,4711.4,4711.3,57.78684511]
[1757727256026,5.64174545,4711.4,4711.3,49.04284511]
[1757727256428,0.101228,4711.4,4711.3,42.60211984]
[1757727256777,15.216013,4712.5,4711.4,3.792]
[1757727257060,15.216013,4712.5,4712.4,0.8976]
[1757727257275,15.216013,4712.5,4712.4,37.4596]
[1757727257433,15.216013,4712.5,4712.4,38.09535553]
[1757727257772,15.216013,4712.5,4712.4,38.39022376]
[1757727258327,16.446013,4712.5,4712.4,38.39022376]
[1757727258528,16.446013,4712.5,4712.4,38.69832376]
[1757727259456,15.93787982,4712.5,4712.4,42.72251607]
[1757727259826,16.10910737,4712.5,4712.4,43.16731607]
[1757727260025,9.45993799,4712.5,4712.4,33.73265643]
[1757727260240,4.78271102,4712.5,4712.4,33.73265643]
[1757727260470,4.78271102,4712.5,4712.4,34.36790888]
[1757727260645,3.3048351,4712.5,4712.4,34.36790888]
[1757727260856,1e-08,4712.5,4712.4,33.28785643]
[1757727261026,66.37600001,4712.9,4712.4,33.96744065]
[1757727261237,66.37600001,4712.9,4712.5,37.60509887]
[1757727261466,65.11500001,4712.9,4712.8,0.1056]
[1757727261666,65.11500001,4712.9,4712.8,33.6666]
[1757727261879,68.17010001,4712.9,4712.8,33.6666]
[1757727262079,56.27210001,4712.9,4712.8,32.484312]
[1757727262229,56.27210001,4712.9,4712.8,33.11999883]
[1757727262565,57.50210001,4712.9,4712.8,33.53385469]
[1757727264063,58.73210001,4712.9,4712.8,33.53385469]
[1757727264614,58.32681701,4712.9,4712.8,33.12857169]
[1757727264976,58.32681701,4712.9,4712.8,29.56757169]
[1757727265175,56.58068001,4712.9,4712.8,45.19837069]
[1757727265522,57.81068001,4712.9,4712.8,46.82437069]
[1757727267113,59.04068001,4712.9,4712.8,46.82437069]
[1757727267625,59.04068001,4712.9,4712.8,40.62037069]
[1757727267912,59.04068001,4712.9,4712.8,34.28937069]
[1757727268210,59.04068001,4712.9,4712.8,33.72937069]
[1757727268370,60.27068001,4712.9,4712.8,38.08137069]
[1757727268700,57.19827302,4712.9,4712.8,31.93651365]
[1757727268894,57.19827302,4712.9,4712.8,32.24461365]
[1757727269808,58.42827302,4712.9,4712.8,32.24461365]
[1757727270703,58.42827302,4712.9,4712.8,9.37938565]
[1757727271197,59.65827302,4712.9,4712.8,9.37938565]
[1757727271394,59.65827302,4712.9,4712.8,32.13901365]
[1757727271600,59.65827302,4712.9,4712.8,32.24461365]
[1757727272030,59.63920902,4712.9,4712.8,32.43995563]
[1757727272432,49.36815002,4712.9,4712.8,20.92889663]
[1757727272630,48.50893188,4712.9,4712.8,20.92889663]
[1757727274038,50.02181293,4712.9,4712.8,17.06079663]
[1757727274202,52.80011293,4712.9,4712.8,20.3515219]
[1757727275336,54.03011293,4712.9,4712.8,32.2395219]
[1757727275561,54.03011293,4712.9,4712.8,35.7995219]
[1757727276610,55.26011293,4712.9,4712.8,35.7995219]
[1757727278631,56.49011293,4712.9,4712.8,35.7995219]
[1757727278831,56.49011293,4712.9,4712.8,24.4453529]
[1757727279036,56.49011293,4712.9,4712.8,35.7995219]
[1757727279387,56.49011293,4712.9,4712.8,20.3515219]
[1757727280040,56.87190347,4712.9,4712.8,20.3515219]
[1757727280926,54.75361432,4712.9,4712.8,20.3515219]
[1757727281128,52.3945,4712.9,4712.8,21.71747035]
[1757727281328,51.52676962,4712.9,4712.8,20.62079663]
[1757727281861,45.17198201,4712.9,4712.8,20.62079663]
[1757727282060,39.75232583,4712.9,4712.8,20.62079663]
[1757727282245,36.361966,4712.9,4712.8,19.85679663]
[1757727282452,33.51116439,4712.9,4712.8,19.85679663]
[1757727282653,32.622921,4712.9,4712.8,19.85679663]
[1757727282859,29.41067682,4712.9,4712.8,18.76279663]
[1757727283079,29.41067682,4712.9,4712.8,22.51202727]
[1757727283239,25.17409988,4712.9,4712.8,22.51202727]
[1757727283641,25.17409988,4712.9,4712.8,18.76279663]
[1757727283845,16.6528557,4712.9,4712.8,11.26662763]
[1757727284177,12.5345674,4712.9,4712.8,39.26662763]
[1757727284492,8.46301983,4713.0,4712.9,3.792]
[1757727284638,7.61489879,4713.0,4712.9,34.55148494]
[1757727284838,5.49665537,4713.0,4712.9,34.55148494]
[1757727285039,5.25868978,4713.0,4712.9,4.55148494]
[1757727285381,0.13390127,4713.0,4712.9,50.63512462]
[1757727285783,1e-08,4713.0,4712.9,50.63512462]
[1757727285989,1.232,4713.3,4713.1,0.792]
[1757727286147,0.002,4713.4,4713.3,3.792]
[1757727286464,1.12545354,4713.9,4713.5,0.792]
[1757727286777,3.37585354,4713.9,4713.8,0.792]
[1757727286948,3.37585354,4713.9,4713.8,37.75146823]
[1757727287447,3.37585354,4713.9,4713.8,38.38704731]
[1757727288028,4.60585354,4713.9,4713.8,38.38704731]
[1757727289389,5.83585354,4713.9,4713.8,38.38704731]
[1757727290284,5.32782365,4713.9,4713.8,38.38704731]
[1757727291276,3.56651524,4713.9,4713.8,38.38704731]
[1757727292160,3.56651524,4713.9,4713.8,42.15471677]
[1757727292579,4.79651524,4713.9,4713.8,42.15471677]
[1757727292777,4.79651524,4713.9,4713.8,41.85984854]
[1757727293295,7.04691524,4713.9,4713.8,41.85984854]
[1757727294073,8.27691524,4713.9,4713.8,41.85984854]
[1757727294586,8.27691524,4713.9,4713.8,38.09217908]
[1757727295206,8.27691524,4713.9,4713.8,51.91217908]
[1757727295510,9.50691524,4713.9,4713.8,49.97917908]
[1757727295706,9.50691524,4713.9,4713.8,52.95495075]
[1757727295907,9.50691524,4713.9,4713.8,53.51295075]
[1757727296115,9.50691524,4713.9,4713.8,56.51295075]
[1757727296411,9.50691524,4713.9,4713.8,52.74517908]
[1757727296774,10.73691524,4713.9,4713.8,52.74517908]
[1757727298175,11.96691524,4713.9,4713.8,52.74517908]
[1757727299395,11.96691524,4713.9,4713.8,22.74517908]
[1757727299577,13.19691524,4713.9,4713.8,22.74517908]
[1757727300316,13.19691524,4713.9,4713.8,52.74517908]
[1757727300520,13.19691524,4713.9,4713.8,52.63957908]
[1757727301016,14.42691524,4713.9,4713.8,52.63957908]
[1757727302204,15.65691524,4713.9,4713.8,52.63957908]
[1757727303435,13.40651524,4713.9,4713.8,53.99572204]
[1757727303633,16.88691524,4713.9,4713.8,53.99572204]
[1757727304640,14.63651524,4713.9,4713.8,54.19106402]
[1757727304801,14.10879914,4713.9,4713.8,56.54616402]
[1757727305006,15.33879914,4713.9,4713.8,56.54616402]
[1757727305235,15.33879914,4713.9,4713.8,57.95883569]
[1757727305939,15.33879914,4713.9,4713.8,57.95983569]
[1757727306112,15.33879914,4713.9,4713.8,54.13256096]
[1757727306317,16.57079914,4713.9,4713.8,57.69056096]
[1757727306515,16.57079914,4713.9,4713.8,27.69056096]
[1757727307605,17.80079914,4713.9,4713.8,57.69056096]
[1757727307804,20.05119914,4713.9,4713.8,56.89856096]
[1757727308047,20.05119914,4713.9,4713.8,56.70321898]
[1757727308341,20.05119914,4713.9,4713.8,49.85035075]
[1757727308635,20.05119914,4713.9,4713.8,49.64057908]
[1757727308840,21.28119914,4713.9,4713.8,52.64057908]
[1757727309541,21.28119914,4713.9,4713.8,46.08257908]
[1757727309711,23.44109633,4713.9,4713.8,49.64057908]
[1757727309911,23.44109633,4713.9,4713.8,52.64057908]
[1757727310108,23.44109633,4713.9,4713.8,49.64057908]
[1757727310303,24.67109633,4713.9,4713.8,49.64057908]
[1757727310510,22.51119914,4713.9,4713.8,46.18817908]
[1757727310819,22.51119914,4713.9,4713.8,52.74617908]
[1757727311743,23.74119914,4713.9,4713.8,22.74617908]
[1757727312952,24.97119914,4713.9,4713.8,13.54617908]
[1757727313252,27.13109633,4713.9,4713.8,16.99857908]
[1757727313411,27.13109633,4713.9,4713.8,19.99857908]
[1757727314043,27.13109633,4713.9,4713.8,16.99857908]
[1757727314209,28.36109633,4713.9,4713.8,19.99857908]
[1757727315060,28.36109633,4713.9,4713.8,16.44057908]
[1757727315227,29.15309633,4713.9,4713.8,16.29028121]
[1757727315422,29.15309633,4713.9,4713.8,7.19328121]
[1757727315625,30.38309633,4713.9,4713.3,0.001]
[1757727315953,30.38309633,4713.9,4713.3,5.083]
[1757727315954,1.24362035,4713.4,4713.3,5.083]
[1757727316152,1.24362035,4713.4,4713.3,6.709]
[1757727316448,3.67722035,4713.4,4713.3,6.709]
[1757727317028,4.11522035,4713.4,4713.3,13.267]
[1757727318341,4.8936,4713.4,4713.3,13.267]
[1757727318663,5.34522035,4713.4,4713.3,13.267]
[1757727319158,4.8936,4713.4,4713.3,13.267]
[1757727319663,5.34522035,4713.4,4713.3,13.267]
[1757727319862,6.98436626,4713.4,4713.3,13.267]
[1757727321143,8.21436626,4713.4,4713.3,13.267]
[1757727322027,8.21436626,4713.4,4713.3,43.267]
[1757727322654,9.44436626,4713.4,4713.3,43.267]
[1757727323229,8.99274591,4713.4,4713.3,43.267]
[1757727323464,9.44436626,4713.4,4713.3,43.267]
[1757727323844,8.99274591,4713.4,4713.3,43.90306421]
[1757727324161,10.22274591,4713.4,4713.3,43.90306421]
[1757727324594,10.67436626,4713.4,4713.3,43.90306421]
[1757727324796,10.22274591,4713.4,4713.3,43.90306421]
[1757727324958,10.67436626,4713.4,4713.3,43.90306421]
[1757727325158,10.22274591,4713.4,4713.3,43.90306421]
[1757727325395,11.90436626,4713.4,4713.3,43.90306421]
[1757727325988,11.45274591,4713.4,4713.3,43.90306421]
[1757727326183,9.06162035,4713.4,4713.3,43.90306421]
[1757727326366,8.61,4713.4,4713.3,43.90306421]
[1757727326566,8.61,4713.4,4713.3,43.267]
[1757727326768,9.84,4713.4,4713.3,43.267]
[1757727327077,10.29162035,4713.4,4713.3,43.267]
[1757727328217,11.52162035,4713.4,4713.3,43.267]
[1757727329177,15.35094239,4713.4,4713.3,9.709]
[1757727329379,17.37294239,4713.4,4713.3,6.709]
[1757727329579,1.24362035,4712.9,4712.8,0.001]
[1757727329888,1.24362035,4712.9,4712.8,10.27]
[1757727330091,3.80158239,4712.9,4712.8,9.711]
[1757727330288,2.4336,4712.9,4712.8,13.27]
[1757727330600,3.67722035,4712.9,4712.8,9.711]
[1757727330764,4.90722035,4712.9,4712.8,13.273]
[1757727331404,4.90722035,4712.9,4712.8,10.273]
[1757727332122,6.13722035,4712.9,4712.8,10.273]
[1757727332284,6.75094239,4712.9,4712.8,13.273]
[1757727333238,2.91162035,4712.9,4712.8,13.273]
[1757727333425,3.69,4712.9,4712.8,16.21034296]
[1757727333629,4.14162035,4712.9,4712.8,16.21034296]
[1757727333927,4.14162035,4712.9,4712.8,45.6462]
[1757727334798,5.37162035,4712.9,4712.8,45.6462]
[1757727335006,5.37162035,4712.9,4712.8,43.273]
[1757727335191,5.37162035,4712.9,4712.8,45.812]
[1757727335392,5.37162035,4712.9,4712.8,49.392]
[1757727336187,6.60162035,4712.9,4712.8,49.392]
[1757727337000,6.60162035,4712.9,4712.8,45.812]
[1757727337200,9.03522035,4712.9,4712.8,19.393]
[1757727337727,10.26522035,4712.9,4712.8,19.393]
[1757727338129,7.83162035,4712.9,4712.8,19.393]
[1757727339226,9.06162035,4712.9,4712.8,19.393]
[1757727339859,11.49522035,4712.9,4712.8,19.393]
[1757727340059,9.06162035,4712.9,4712.8,19.393]
[1757727340459,10.29162035,4712.9,4712.8,19.393]
[1757727340864,10.10312681,4712.9,4712.8,51.7662]
[1757727341053,10.10312681,4712.9,4712.8,52.33034296]
[1757727341249,10.10312681,4712.9,4712.8,52.96624537]
[1757727341449,10.10312681,4712.9,4712.8,52.41910241]
[1757727341657,11.33312681,4712.9,4712.8,52.41910241]
[1757727342052,11.33312681,4712.9,4712.8,46.44790241]
[1757727342259,11.33312681,4712.9,4712.8,50.04590241]
[1757727342457,11.33312681,4712.9,4712.8,50.35890241]
[1757727342834,11.33312681,4712.9,4712.8,20.35890241]
[1757727343035,11.33312681,4712.9,4712.8,19.723]
[1757727343251,12.56312681,4712.9,4712.8,19.723]
[1757727343454,12.56312681,4712.9,4712.8,49.723]
[1757727344684,14.10592681,4712.9,4712.8,49.41]
[1757727346081,14.10592681,4712.9,4712.8,19.41]
[1757727346282,15.33592681,4712.9,4712.8,19.41]
[1757727346460,15.02312681,4712.9,4712.8,19.41]
[1757727346661,15.02312681,4712.9,4712.8,19.407]
[1757727347015,15.32392681,4712.9,4712.8,19.407]
[1757727347685,16.55392681,4712.9,4712.8,19.407]
[1757727347997,16.55392681,4712.9,4712.8,49.407]
[1757727348174,16.55392681,4712.9,4712.8,49.406]
[1757727348858,16.55392681,4712.9,4712.8,45.812]
[1757727349093,17.78392681,4712.9,4712.8,49.405]
[1757727349593,20.56422681,4712.9,4712.8,42.812]
[1757727349798,20.56422681,4712.9,4712.8,19.405]
[1757727350477,19.15482681,4712.9,4712.8,19.405]
[1757727350667,18.71312681,4712.9,4712.8,19.405]
[1757727350873,18.71312681,4712.9,4712.8,49.716]
[1757727351074,18.26150646,4712.9,4712.8,52.0774]
[1757727352187,19.49150646,4712.9,4712.8,52.0774]
[1757727353571,20.72150646,4712.9,4712.8,52.83546823]
[1757727353776,20.72150646,4712.9,4712.8,52.5406]
[1757727353984,20.72150646,4712.9,4712.8,53.17654824]
[1757727354776,21.17312681,4712.9,4712.8,53.17654824]
[1757727355104,22.40312681,4712.9,4712.8,53.17654824]
[1757727355301,21.95150646,4712.9,4712.8,53.17654824]
[1757727355690,22.40312681,4712.9,4712.8,53.17654824]
[1757727356007,22.40312681,4712.9,4712.8,52.71334824]
[1757727356200,22.40312681,4712.9,4712.8,53.6350912]
[1757727356515,23.63312681,4712.9,4712.8,56.2765008]
[1757727356899,23.63312681,4712.9,4712.8,53.6350912]
[1757727357409,23.63512681,4712.9,4712.8,53.6350912]
[1757727357820,24.86512681,4712.9,4712.8,53.6350912]
[1757727358191,24.86512681,4712.9,4712.8,53.36581647]
[1757727358518,24.86512681,4712.9,4712.8,55.24632759]
[1757727359098,26.09512681,4712.9,4712.8,55.24632759]
[1757727359704,26.09512681,4712.9,4712.8,55.70952759]
[1757727360316,26.09512681,4712.9,4712.8,49.99052759]
[1757727360623,27.32512681,4712.9,4712.8,50.35194824]
[1757727360983,27.32512681,4712.9,4712.8,52.60774824]
[1757727361385,27.32512681,4712.9,4712.8,50.34694824]
[1757727361984,28.55512681,4712.9,4712.8,50.34694824]
[1757727362728,28.55512681,4712.9,4712.8,20.34694824]
[1757727362900,28.55512681,4712.9,4712.8,50.34694824]
[1757727363502,29.78512681,4712.9,4712.8,50.34694824]
[1757727364918,31.01512681,4712.9,4712.8,50.34694824]
[1757727366224,32.24512681,4712.9,4712.8,50.45254824]
[1757727366795,32.24512681,4712.9,4712.8,20.45254824]
[1757727366996,32.24512681,4712.9,4712.8,50.45254824]
[1757727367196,32.24512681,4712.9,4712.8,52.70834824]
[1757727367396,32.24512681,4712.9,4712.8,53.46641647]
[1757727367596,33.47512681,4712.9,4712.8,53.46641647]
[1757727367820,33.47512681,4712.9,4712.8,23.46641647]
[1757727368025,33.47512681,4712.9,4712.8,53.46641647]
[1757727368930,34.70512681,4712.9,4712.8,53.46641647]
[1757727370922,35.93512681,4712.9,4712.8,53.46641647]
[1757727371324,35.93512681,4712.9,4712.8,53.00321647]
[1757727372248,35.93512681,4712.9,4712.8,53.46641647]
[1757727372549,34.49143106,4712.9,4712.8,54.15423318]
[1757727372843,12.92753952,4712.9,4712.8,41.80643318]
[1757727373144,0.002,4713.3,4712.9,34.79743551]
[1757727373358,0.002,4713.3,4713.1,3.792]
[1757727373566,0.002,4713.3,4713.2,38.16398494]
[1757727373857,12.04996512,4713.4,4713.3,3.792]
[1757727374015,12.04996512,4713.4,4713.3,38.16398494]
[1757727374221,12.04996512,4713.4,4713.3,40.41978494]
[1757727374622,12.04996512,4713.4,4713.3,41.05540712]
[1757727375022,12.22167224,4713.4,4713.3,41.05540712]
[1757727375272,12.22167224,4713.4,4713.3,56.50740712]
[1757727376439,13.45167224,4713.4,4713.3,56.50740712]
[1757727378469,14.68167224,4713.4,4713.3,56.50740712]
[1757727378967,18.14809259,4713.4,4713.3,43.44462218]
[1757727379169,18.14809259,4713.4,4713.3,44.55262218]
[1757727379337,14.57129498,4713.4,4713.3,44.55262218]
[1757727379536,14.00446804,4713.4,4713.3,46.2159742]
[1757727379852,10.63894874,4713.4,4713.3,46.2159742]
[1757727380037,25.18079914,4713.9,4713.4,4.06618255]
[1757727380236,25.18079914,4713.9,4713.6,3.0]